Cogmind - Beta 16 @@@ ROGUE MODE // 2025.11.03 @ 14:47:18 Player: PoggyBison Result: Destroyed by A-27 Freighter with PD Laser Performance ------------- Evolutions (4) 2000 Regions Visited (5) 1000 Robots Destroyed (87) 435 Value Destroyed (2238) 2238 Prototype IDs (4) 80 Alien Tech Used (0) 0 Bonus (81) 81 TOTAL SCORE: 5834 Bonus ------- High Alert Combat Kills 81 Cogmind --------- Core Integrity 0/850 Matter 290/300 Energy 79/100 System Corruption 1% Temperature Cool (6) Movement Rolling (80) Location -6/Factory Parts ------- > --- POWER (2) -------- (None) > --- PROPULSION (5) --- Wheel > --- UTILITY (5) ------ Improved Melee Analysis Suite Advanced Melee Analysis Suite > --- WEAPON (3) ------- (None) > --- INVENTORY (5) ---- Gravmag System Gravmag System Advanced Heat Sink Coil Gun Chainsword Peak State ------------ > --- POWER ------------ Light Angular Momentum Engine Light Fission Core > --- PROPULSION ------- Improved Gravmag System Linear Gravjet Linear Gravjet Linear Gravjet Linear Gravjet > --- UTILITY ---------- Power Amplifier Improved Heat Sink Medium Storage Unit Improved Melee Analysis Suite Advanced Melee Analysis Suite > --- WEAPON ----------- Powered Hammer Powered Hammer Great Axe > --- INVENTORY -------- Carbon-fiber Leg Carbon-fiber Leg Gravmag System Gravmag System Gravmag System Cloaking Device Propulsion Shielding Coil Gun Improved Grenade Launcher Chainsword [Rating: 72] Favorites ----------- Power Light Ion Engine Engine Light Ion Engine Power Core Light Fission Core Propulsion Armored Wheel Treads Light Treads Leg Improved Aluminum Leg Wheel Armored Wheel Hover Unit Linear Gravjet Flight Unit Cesium-ion Thruster Utility Improved Targeting Computer Device Improved Heat Sink Storage Medium Storage Unit Processor Improved Targeting Computer Hackware System Shield Protection Propulsion Shielding Weapon Spread Laser Energy Gun Spread Laser Energy Cannon Particle Cannon Ballistic Gun Assault Rifle Ballistic Cannon Light Cannon Launcher Improved Grenade Launcher Impact Weapon Powered Hammer Slashing Weapon Great Axe Build | -11 -10 -9 -8 -7 -6 ------- Run | Yrd Mat Mat Mat Fac Fac Slots Evolved 8 | . . 2 2 2 2 Power 1 | . . . . 1 . Propulsion 3 | . . 1 1 1 . Utility 3 | . . 1 1 . 1 Weapon 1 | . . . . . 1 Parts Attached 89 | 11 9 10 21 12 26 Power 16 | 1 2 2 4 2 5 Engine 13 | 1 2 2 3 2 3 Core 3 | . . . 1 . 2 Reactor . | . . . . . . Propulsion 33 | 4 2 2 9 3 13 Treads 2 | . . . 2 . . Leg 10 | 2 . . 2 2 4 Wheel 14 | 2 2 2 3 1 4 Hover 5 | . . . . . 5 Flight 2 | . . . 2 . . Utility 19 | 4 1 3 3 3 5 Device 9 | 2 1 1 1 2 2 Storage 5 | 2 . . 2 . 1 Processor 3 | . . 1 . 1 1 Hackware 1 | . . 1 . . . Protection 1 | . . . . . 1 Artifact . | . . . . . . Weapon 21 | 2 4 3 5 4 3 Energy Gun 5 | . 3 1 1 . . Energy Cannon 3 | . . 1 1 . 1 Ballistic Gun 2 | 2 . . . . . Ballistic Cannon 1 | . 1 . . . . Launcher 5 | . . . 3 2 . Special Weapon . | . . . . . . Impact Weapon 3 | . . 1 . 1 1 Slashing Weapon 2 | . . . . 1 1 Piercing Weapon . | . . . . . . Special Melee Weapon . | . . . . . . Unidentified Prototypes . | . . . . . . Parts Lost 39 | . . 1 16 . 22 Power 8 | . . 1 3 . 4 Propulsion 21 | . . . 9 . 12 Utility 4 | . . . 1 . 3 Weapon 6 | . . . 3 . 3 Highest Loss Streak 13 | . . 1 9 . 13 To Critical Strikes . | . . . . . . Average Backups 8 | 5 7 7 9 8 8 Power 1 | 1 1 1 1 1 . Propulsion 1 | 2 3 1 1 . 2 Utility 1 | . . . 1 4 1 Weapon 3 | . 1 3 4 2 3 Tool/Special . | . . . . . . Unused Backups 29 | 4 5 3 5 3 9 Power 1 | . . . 1 . . Propulsion 9 | 2 4 . . . 3 Utility 10 | 1 . 1 2 3 3 Weapon 9 | 1 1 2 2 . 3 Tool/Special . | . . . . . . Average Slot Usage (%) 92 | . 100 97 91 98 84 Engine 8 | . 14 10 8 14 3 Core 1 | . . . . . 5 Treads 1 | . . . 7 . . Leg 6 | . . . 3 22 6 Wheel 17 | . 28 31 18 14 4 Hover 4 | . . . . . 14 Device 7 | . 14 6 7 7 6 Storage 8 | . 14 11 9 7 5 Processor 9 | . . 10 9 7 12 Hackware 5 | . . 4 9 7 3 Energy Gun 6 | . 8 19 5 . . Energy Cannon 2 | . . . 7 1 . Launcher 2 | . . . 2 12 . Impact Weapon 4 | . . 1 2 . 10 Slashing Weapon 1 | . . . . . 6 Peak Build Rating 72 | 9 13 19 28 34 72 Average Rating 28 | 6 9 17 21 29 50 On Entrance 15 | . 9 13 18 16 34 Avg Prop Armor Cover (%) 8 | 5 . 6 14 6 6 Naked Turns . | . . . . . . Heaviest Build 52 | 13 16 20 52 34 45 Greatest Support 56 | 20 24 36 48 38 56 Greatest Overweight (x) 5 | 1 . . 2 1 5 Average Overweight (x) . | . . . . . . Largest Inventory Capacity 20 | 8 8 8 20 10 10 Average Capacity 9 | 7 8 8 12 10 9 Most Carried 14 | 8 8 8 14 10 10 Average Carried 8 | 5 7 7 9 8 8 Final Capacity 10 | 8 8 8 10 10 5 Final Carried 10 | 8 8 6 10 9 5 Class Distribution -------------------- 56% | Mutant 18% | Scavenger-Mutant 12% | Sprinter 12% | Gladiator Dominant Class ---------------- Mutant | -10/Materials Mutant | -9/Materials Mutant | -8/Materials Scavenger-Mutant | -7/Factory Sprinter | -6/Factory Resources | -11 -10 -9 -8 -7 -6 ----------- Run | Yrd Mat Mat Mat Fac Fac Matter Collected 1534 | 380 78 177 339 98 462 Remotely 155 | 155 . . . . . Salvage Created 2968 | 167 132 350 556 110 1653 Parts 139 | 12 14 23 39 5 46 Haulers Intercepted 1 | . . . 1 . . Recyclers Shooed 2 | . . 1 . 1 . Parts Field Recycled . | . . . . . . Retrieved Matter . | . . . . . . Parts Self-Destructed . | . . . . . . Prevented . | . . . . . . Parts Restored . | . . . . . . Kills | -11 -10 -9 -8 -7 -6 ------- Run | Yrd Mat Mat Mat Fac Fac Combat Hostiles Destroyed 62 | . 7 12 24 3 16 Melee 15 | . . 2 . . 13 Guns 22 | . 6 9 7 . . Cannons 2 | . 1 . 1 . . AOE 18 | . . . 15 3 . Classes Destroyed 11 | 3 2 3 2 . 1 Worker 6 | 2 . 2 . . 2 Builder 4 | . . . . . 4 Tunneler 3 | 2 . . 1 . . Hauler 1 | . . . 1 . . Recycler 8 | 1 . 1 1 . 5 Watcher 3 | . . 2 . 1 . Swarmer 28 | . 6 5 14 . 3 Grunt 24 | . 1 3 5 3 12 Brawler 1 | . . . 1 . . Duelist 3 | . . 1 1 . 1 Sentry 6 | . . 3 3 . . Best Kill Streak 11 | 3 4 7 6 3 11 Combat Bots Only 9 | . 4 7 6 3 9 Max Kills in Single Turn 4 | 2 1 1 4 2 2 Gunslinging . | . . . . . . Exploded 3 | . . . 3 2 . Melee 2 | . . 1 . . 2 Uniques/NPCs Destroyed . | . . . . . . Combat | -11 -10 -9 -8 -7 -6 -------- Run | Yrd Mat Mat Mat Fac Fac Hostile Shots Fired 536 | . 29 90 189 31 197 Missed 148 | . 10 21 48 15 54 Hits 388 | . 19 69 141 16 143 Melee 7 | . . 5 . . 2 Projectile 381 | . 19 64 141 16 141 AOE 1 | . . . . . 1 Critical Strikes 10 | . . 2 3 . 5 Damage Taken 5385 | . 157 859 1752 122 2495 Core 1640 | . 39 341 401 . 859 Absorbed by Shields 278 | . . . . 32 246 Redirected to Shielding 50 | . . . . . 50 Core Remaining (%) 65 | 100 84 14 27 100 . Volleys Fired 109 | 10 15 34 44 6 . Largest 2 | 2 2 2 2 2 . Hottest 131 | 40 130 130 131 72 . Shots Fired 193 | 20 28 58 76 11 . Gun 129 | 20 18 58 33 . . Cannon 44 | . 10 . 34 . . Launcher 20 | . . . 9 11 . Special . | . . . . . . Kinetic 40 | 20 20 . . . . Thermal 133 | . 8 58 67 . . Explosive 20 | . . . 9 11 . Electromagnetic . | . . . . . . Robot Hit Streak 16 | 8 3 16 7 10 . Robot Miss Streak 7 | 2 7 5 6 1 . Penetration Max . | . . . . . . Secondary Targets 2 | . 2 . . . . Max Gunslinging Chain 1 | . 1 . . . . Shots Hit Robots 224 | 14 14 58 45 6 87 Core Hits 167 | 6 12 64 39 14 32 Critical Kills 1 | . . 1 . . . Critical Parts Destroyed 7 | . . 3 . . 4 Critical Strikes 20 | . . 4 . . 16 Smash 8 | . . 4 . . 4 Sever 12 | . . . . . 12 Melee Attacks 121 | . . 14 9 . 98 Impact 41 | . . 14 9 . 18 Slashing 80 | . . . . . 80 Piercing . | . . . . . . Sneak Attacks 19 | . . 1 . . 18 Combat Hostiles 3 | . . . . . 3 Follow-up Attacks 18 | . . . . . 18 Damage Inflicted 8463 | 177 148 1029 2063 624 4422 Guns 1357 | 177 128 705 347 . . Cannons 306 | . 20 . 286 . . Explosions 1883 | . . . 1259 624 . Melee 4895 | . . 324 171 . 4400 Ramming 22 | . . . . . 22 Kinetic 263 | 177 86 . . . . Thermal 1400 | . 62 705 633 . . Explosive 1883 | . . . 1259 624 . Electromagnetic . | . . . . . . Impact 1491 | . . 324 171 . 996 Slashing 3404 | . . . . . 3404 Piercing . | . . . . . . Highest Corruption 1 | . . . . . 1 Average Corruption 1 | . . . . . 1 Corruption Purged . | . . . . . . Corruption Blocked . | . . . . . . Overload Shots . | . . . . . . Overflow Damage 1151 | . . 129 120 12 890 Projectiles 2 | . . . 2 . . Explosions 81 | . . . 69 12 . Melee 1068 | . . 129 49 . 890 Knockbacks 7 | . . 2 1 . 4 Impact 6 | . . 2 1 . 3 Kinetic . | . . . . . . Secondary 1 | . . . . . 1 Self-Inflicted Damage 240 | . . . 234 . 6 Shots 4 | . . . 4 . . Rammed 3 | . . . . . 3 Targets Rammed 5 | . . . . . 5 Kicked 2 | . . . . . 2 Crushed . | . . . . . . Highest Temperature 353 | . 235 353 111 36 166 Average Temperature 57 | . 123 73 33 18 46 Received Heat Transfer 1594 | . 18 243 477 34 822 Effects 2 | . 1 1 . . . Energy Bleed 1 | . . 1 . . . Interference 1 | . 1 . . . . Siege Activations . | . . . . . . Martial Activations . | . . . . . . Shielding Activations . | . . . . . . Robots Disrupted . | . . . . . . Combat Hostiles . | . . . . . . Robots Corrupted 6 | . . 1 1 . 4 Combat Hostiles 5 | . . 1 1 . 3 Parts Fried 13 | . . 2 1 . 10 Impact Corruptions 20 | . . 4 3 . 13 Robots Melted . | . . . . . . Combat Hostiles . | . . . . . . Parts Melted 2 | . . . 2 . . Heat Transferred 2243 | . 75 895 1273 . . Parts Sabotaged . | . . . . . . Parts Stolen . | . . . . . . Parts Stripped . | . . . . . . Power Chain Reactions . | . . . . . . Alert | -11 -10 -9 -8 -7 -6 ------- Run | Yrd Mat Mat Mat Fac Fac Maximum Alert Level 2 | . . 1 2 1 1 Low Security (%) 60 | 100 100 91 27 6 69 Level 1 27 | . . 8 15 93 30 Level 2 12 | . . . 56 . . Level 3 . | . . . . . . Level 4 . | . . . . . . Level 5 . | . . . . . . High Security . | . . . . . . Max Security . | . . . . . . Peak Influence 609 | 15 107 222 609 321 353 Initial 273 | . 3 40 89 273 151 Average 190 | 2 59 85 353 252 195 Influence Increases 2495 | 25 177 434 926 218 715 Destroy 0b10 Robot/C 1240 | . 140 240 480 60 320 Destroy 0b10 Robot/NC 125 | 25 . 25 15 5 55 Destroy Leader 238 | . 20 64 102 12 40 Successful Hack 9 | . . 5 4 . . Disable Machine 180 | . . 30 75 75 . Destroy Structure 208 | . 2 25 130 51 . Partial Spotted 75 | . . . 30 . 45 Lose Combat Pursuer 420 | . 15 45 90 15 255 Influence Decreases 2167 | 20 85 320 536 508 698 Entered New Map 669 | . 2 57 122 328 160 Time Decay 1108 | 20 83 253 254 180 318 Lost Part 390 | . . 10 160 . 220 Squads Dispatched 12 | . . 3 5 1 3 Investigation 3 | . . 2 1 . . Extermination 1 | . . . . . 1 Reinforcement 5 | . . 1 1 1 2 Assault . | . . . . . . Garrison 3 | . . . 3 . . Intercept . | . . . . . . Searches Triggered . | . . . . . . Construction Impeded . | . . . . . . Haulers Reinforced . | . . . . . . Active Scanning Responses . | . . . . . . Cargo Convoy Interrupts 1 | . . . . . 1 Stealth | -11 -10 -9 -8 -7 -6 --------- Run | Yrd Mat Mat Mat Fac Fac Distress Signals 6 | . 1 1 2 . 2 Communications Jammed . | . . . . . . Distress Signals . | . . . . . . Times Spotted 142 | . 9 31 37 9 56 Peak Tracking Total 16 | . 4 7 11 4 16 Tactical Retreats 16 | . 1 2 3 1 9 Traps | -11 -10 -9 -8 -7 -6 ------- Run | Yrd Mat Mat Mat Fac Fac Traps Triggered 3 | . . . 1 1 1 Indirectly . | . . . . . . Trap Hack Attempts . | . . . . . . Triggered . | . . . . . . Disarmed . | . . . . . . Reprogrammed . | . . . . . . Reused . | . . . . . . Traps Extracted . | . . . . . . Installed . | . . . . . . Triggered . | . . . . . . Machines | -11 -10 -9 -8 -7 -6 ---------- Run | Yrd Mat Mat Mat Fac Fac Machines Disabled 12 | . . 2 5 5 . Max in Single Turn 3 | . . 2 2 3 . Machines Repaired . | . . . . . . Machines Dismantled . | . . . . . . Machines Sabotaged . | . . . . . . Overloaded Fab Kills . | . . . . . . Hacking | -11 -10 -9 -8 -7 -6 --------- Run | Yrd Mat Mat Mat Fac Fac Machines Accessed 11 | . 2 6 2 1 . Terminals 8 | . 2 4 1 1 . Fabricators . | . . . . . . Repair Stations . | . . . . . . Recycling Units 1 | . . 1 . . . Scanalyzers 2 | . . 1 1 . . Garrison Access . | . . . . . . Total Hacks 35 | . 5 18 11 1 . Successful 15 | . 3 5 6 1 . Failed 20 | . 2 13 5 . . Catastrophic 2 | . . 1 1 . . Database Lockouts . | . . . . . . Manual . | . . . . . . Terminals 23 | . 5 13 4 1 . Fabricators . | . . . . . . Repair Stations . | . . . . . . Recycling Units 1 | . . 1 . . . Scanalyzers 11 | . . 4 7 . . Garrison Access . | . . . . . . Terminal Hacks 8 | . 3 2 2 1 . Record 1 | . 1 . . . . Prototype ID Bank 2 | . 1 1 . . . Open DSF 1 | . . . . 1 . Emergency Access Points 1 | . . . 1 . . Alert Level 1 | . 1 . . . . Zone Layout 2 | . . 1 1 . . Fabricator Hacks . | . . . . . . Repair Station Hacks . | . . . . . . Recycling Unit Hacks 1 | . . 1 . . . Report Inventory 1 | . . 1 . . . Scanalyzer 6 | . . 2 4 . . Retrieve Study 6 | . . 2 4 . . Garrison Access Hacks . | . . . . . . Unauthorized Hacks . | . . . . . . Terminals . | . . . . . . Fabricators . | . . . . . . Repair Stations . | . . . . . . Recycling Units . | . . . . . . Scanalyzers . | . . . . . . Garrison Access . | . . . . . . Data Cores Recovered . | . . . . . . Used . | . . . . . . Hacking Detections 7 | . 2 4 1 . . Full Trace Events 2 | . . 2 . . . Feedback Events . | . . . . . . Feedback Blocked . | . . . . . . Robot Schematics Acquired . | . . . . . . Robots Built . | . . . . . . Authchips . | . . . . . . Time . | . . . . . . Total Robot Build Rating . | . . . . . . Part Schematics Acquired . | . . . . . . Parts Built . | . . . . . . Authchips . | . . . . . . Time . | . . . . . . Total Part Build Rating . | . . . . . . Part Studies Acquired 6 | . . 2 4 . . Parts Repaired . | . . . . . . Time . | . . . . . . Parts Recycled . | . . . . . . Recycled Matter . | . . . . . . Retrieved Matter . | . . . . . . Retrieved Components . | . . . . . . Parts Scanalyzed . | . . . . . . Part Schematics Acquired . | . . . . . . Parts Damaged . | . . . . . . Bothacking | -11 -10 -9 -8 -7 -6 ------------ Run | Yrd Mat Mat Mat Fac Fac Used RIF Installer . | . . . . . . Robots Hacked . | . . . . . . Non-combat . | . . . . . . Combat . | . . . . . . Robot Hacks Applied . | . . . . . . Relay Couplers Released . | . . . . . . Fabnet Peak Effective % . | . . . . . . Robots Rewired . | . . . . . . Allies Hacked . | . . . . . . Hacks Repelled . | . . . . . . Allies | -11 -10 -9 -8 -7 -6 -------- Run | Yrd Mat Mat Mat Fac Fac Total Allies . | . . . . . . Largest Group . | . . . . . . Highest-Rated Group . | . . . . . . Highest-Rated Ally . | . . . . . . Total Orders . | . . . . . . Ally Attacks . | . . . . . . Total Damage . | . . . . . . Kills . | . . . . . . Allies Corrupted . | . . . . . . Allies Melted . | . . . . . . Intel | -11 -10 -9 -8 -7 -6 ------- Run | Yrd Mat Mat Mat Fac Fac Active Infowar (turns) 141 | 8 133 . . . . Terrain 141 | 8 133 . . . . Robot Analysis Total . | . . . . . . Derelict Logs Recovered . | . . . . . . Drone Launches . | . . . . . . Drone Recoveries . | . . . . . . Exploration | -11 -10 -9 -8 -7 -6 ------------- Run | Yrd Mat Mat Mat Fac Fac Turns Passed 2559 | 139 185 612 544 377 702 Spaces Moved 1748 | 78 139 436 349 267 479 Core 14 | 3 . . . . 11 Treads 3 | . . . 3 . . Legs 389 | 24 . . . 256 109 Wheels 1006 | 51 139 436 346 11 23 Hover 336 | . . . . . 336 Flight . | . . . . . . Fastest Speed 28 | 50 80 90 80 95 28 Average Speed 85 | 92 80 90 94 109 62 Slowest Speed 300 | 190 90 90 160 110 300 Overloaded Moves . | . . . . . . Propulsion Burnouts . | . . . . . . Robots Hopped . | . . . . . . Potential Cave-ins . | . . . . . . Cave-ins Triggered . | . . . . . . Exploration Rate (%) 20 | 5 29 40 30 9 9 Regions Visited 5 Branch Regions . Pre-discovered Areas . | . . . . . . Known Exits Taken . | . . . . . . Unknown Exits Taken 5 | 1 1 1 1 1 . Scrap Searched . | . . . . . . Spaces Dug . | . . . . . . Terrain Destroyed 218 | . . 25 142 51 . Melee . | . . . . . . Projectile . | . . . . . . AOE 218 | . . 25 142 51 . Terrain Rammed . | . . . . . . Walls Destroyed . | . . . . . . Machines Disabled . | . . . . . . Actions | -11 -10 -9 -8 -7 -6 --------- Run | Yrd Mat Mat Mat Fac Fac Total 2439 | 125 187 572 470 343 742 Wait 212 | . . 66 2 39 105 Move 1743 | 77 138 435 348 266 479 Hop . | . . . . . . Pick Up 88 | 16 10 5 26 12 19 Fast Attach 23 | 8 2 2 2 . 9 Attach 35 | 2 2 4 12 7 8 Detach 4 | 1 . . . 1 2 Swap 51 | 2 5 6 15 6 17 Drop 68 | 9 15 6 12 6 20 Fire 109 | 10 15 34 44 6 . Melee 101 | . . 14 9 . 78 Ram 3 | . . . . . 3 Kick 2 | . . . . . 2 Crush . | . . . . . . Escape Stasis . | . . . . . . Rewire . | . . . . . . Trap . | . . . . . . Miscellaneous . | . . . . . . Route ------- -11/Scrapyard -10/Materials -9/Materials -8/Materials -7/Factory -6/Factory History --------- Turn | Location | Event 20 | -11/Scrapyard | Discovered new exit (range 15) 140 | -11/Scrapyard | Entered Materials 248 | -10/Materials | Discovered new exit (range 16) 325 | -10/Materials | Entered another Materials area 325 | -9/Materials | Evolved 2 slots: Propulsion x1, Utility x1 358 | -9/Materials | Build established: Mutant 826 | -9/Materials | Core integrity fell below 50% 894 | -9/Materials | Core integrity fell below 20% 915 | -9/Materials | Destroyed 7 combat bots 920 | -9/Materials | Discovered new exit (range 9) 937 | -9/Materials | Entered another Materials area 937 | -8/Materials | Evolved 2 slots: Propulsion x1, Utility x1 1049 | -8/Materials | Garrison activated, responded to threat 1125 | -8/Materials | Core integrity fell below 50% 1170 | -8/Materials | Lost 9 parts (2p4n1u2w) 1419 | -8/Materials | Discovered new exit (range 11) 1481 | -8/Materials | Entered Factory 1481 | -7/Factory | Evolved 2 slots: Power x1, Propulsion x1 1489 | -7/Factory | Lost 5 parts (1p3n1w) 1801 | -7/Factory | Build established: Scavenger-Mutant 1815 | -7/Factory | Discovered new exit (range 10) 1858 | -7/Factory | Entered another Factory area 1858 | -6/Factory | Evolved 2 slots: Utility x1, Weapon x1 2036 | -6/Factory | Lost 3 parts (3n) 2258 | -6/Factory | Spotted B-75 Beast 2455 | -6/Factory | Core integrity fell below 50% 2479 | -6/Factory | Lost 13 parts (3p5n3u2w) 2493 | -6/Factory | Destroyed 9 combat bots 2541 | -6/Factory | Cargo convoy interrupted 2546 | -6/Factory | Core integrity fell below 20% 2560 | -6/Factory | Destroyed by A-27 Freighter with PD Laser Last Messages --------------- 02540_ Carbon-fiber Leg destroyed. 02541_ ALERT: Cargo convoy interrupted, initiating access lockdown. [Achievement: Jackpot] 02541_ C-45 Heavy ARC bursts open, deploying its payload. 02541_ X-72 Disruptor unfolds itself. 02541_ P-60 Hacker unfolds itself. 02541_ X-67 Chaingunner unfolds itself. 02545_ Destroyed Lgt. Angular Momentum Engine. 02547_ K-01 Serf collects debris. 02549_ Com. Wheel destroyed. 02550_ G-50 Soldier Carbon-fiber Leg severed. 02553_ G-50 Soldier destroyed. 02556_ Dropped Med. Storage Unit. 02556_ K-01 Serf collects debris. 02557_ Pressure Siphon disabled. 02558_ Acquired Wheel. 02559_ K-01 Serf cleans the Nuclear Reactor. 02560_ K-01 Serf collects debris. Map ----- +----------------------------------------------------+ | ???????########?# "" "" #???????????????????? | | ###????# #?# "" "" #???????????????????? | | # ####?# """ #?# #???????????????????? | | # # ### """ #########+######???????????????????? | | # """ # !! ##????????????????????? | | # #^%!! ! "#????????????????????? | | # # !% / T#????????????????????? | | # [+ #????????????????????? | | # "" # /! ##????????????????????? | | # """# #?????????????????????? | | !# F"# ^ #########???####??????? | | # """# """ """ ??????? | | # "" # """ """ ??????? | | [= # + """ """ ??????? | | %* ###+#### ???????? | | =* #?# #??# ???????? | | % #?# #??# #"T"#############/#####??????? | | = ### #### #####????????# = ???????? | | % # #????????????# """"???????? | | % # #????????????# """"???????? | | # !! """k #???????????##% """"#??????? | | # !! ] """ #############" """"#??????? | | ######## !! "%%% *m%%kex%%%/% """"#??????? | | ???????# """ ==pu###### """"#??????? | | ######## =A!##????# """"???????? | | k @!#?????# #??????? | | ! #?????##########??????? | | w ????????????????????? | | ??????????????????? | | ^ ?????????????????? | | ##+######+##### ????????????????? | | ??????????????#!!! """ """ """ ???????????????? | | ??????????????#!!!^ """ """ """ #??????????????? | | ??????????????#!! k""" """ """ #??????????????? | | ??????????????# o ?? +??????????????? | | ??????????????# ?? ?? ??????????????????? | | ??????????????# ? ?? ??????????????????? | | ???????????????? ###??#+#???##??????????????????? | | ?????????????????????????????????????????????????? | | ?????????????????????????????????????????????????? | | ?????????????????????????????????????????????????? | | ?????????????????????????????????????????????????? | | ?????????????????????????????????????????????????? | | ?????????????????????????????????????????????????? | | ?????????????????????????????????????????????????? | | ?????????????????????????????????????????????????? | | ?????????????????????????????????????????????????? | | ?????????????????????????????????????????????????? | | ?????????????????????????????????????????????????? | | ?????????????????????????????????????????????????? | +----------------------------------------------------+ Best States ------------- Heat Dissipation 51 Energy Generation 36 Energy Capacity 370 Matter Stores 300 Matter Capacity 300 Sight Range 16 Terrain Scan Range 16 Terrain Scan Density 10 Power Amplification 20 Propulsion Shielding 33 Evasion (%) 59 Targeting Accuracy 6 Melee Accuracy 14 Recoil Reduction 2 Matter Filtering 30 Defensive Hacking 10 Item Schematics ----------------- None Robot Schematics ------------------ None Fabricated ------------ Nothing Repaired ---------- Nothing Studied --------- Imp. Ion Engine | -9/Materials | Hacked Rocket Launcher | -9/Materials | Hacked Arm. Wheel | -8/Materials | Hacked Lgt. Nuclear Core | -8/Materials | Hacked Spread Laser | -8/Materials | Hacked Particle Cannon | -8/Materials | Hacked Alien Tech Used ----------------- None Achievements -------------- Ambidextrous Item+ Jackpot Overwhelming Resistances Are Futile Challenges ------------ None Game ------ Seed LinearPulseScrap Manual? 0 Play Time 01:56:54 Cumulative 30.3 hours Start 2025.10.27 @ 17:47:28 End 2025.11.03 @ 14:47:18 Sessions 5 Manual Loads 0 Difficulty Rogue Special Mode None Game No. 18 Rogue 18 Adventurer 0 Explorer 0 Win Type - Total 0 Types 0/0/0/0/0/0/0/0/0/0 Lore% 8 Gallery% 22 Achievement% 12 Wizard Run 0 Options --------- Layout 1 ASCII 0 Keyboard 1 Movement Numpad Keybinds 0 Fullscreen 1 Font 24/Terminus Map View 50x35 Zoom Use 3% Tactical HUD 1 Map Filters NONE Filters NONE Steam 1 RUN: 0f9f4c0c-7ce7-439b-8667-907f102cb7c9